bitfinex/quotes_SOLUSD_20260211
["timestamp","ask_amount","ask_price","bid_price","bid_amount"]
[1770821213985,19.62367447,80.89,80.851,0.53906012]
[1770821214186,43.6,80.891,80.853,0.53906012]
[1770821214187,19.62367447,80.88,80.853,0.53906012]
[1770821214390,19.62367447,80.89,80.853,0.53906012]
[1770821214577,19.62367447,80.89,80.86,19.62367447]
[1770821214778,111.1303188,80.986,80.881,0.53906012]
[1770821214997,19.62367447,80.94,80.901,0.53906012]
[1770821215503,19.62367447,80.95,80.911,0.53906012]
[1770821215681,19.62367447,80.92,80.862,0.53906012]
[1770821215877,19.62367447,80.95,80.91,19.62367447]
[1770821216078,19.62367447,80.94,80.912,12.35910618]
[1770821216398,19.62367447,80.93,80.901,12.36078664]
[1770821216590,19.62367447,80.93,80.898,30.90311256]
[1770821216591,19.62367447,80.93,80.898,12.36124502]
[1770821216786,19.62367447,80.93,80.89,19.62367447]
[1770821216988,19.62367447,80.93,80.891,43.2681015]
[1770821217189,19.62367447,80.92,80.884,0.53906012]
[1770821217412,43.62,80.925,80.884,0.53906012]
[1770821217582,19.62367447,80.92,80.89,19.62367447]
[1770821217783,43.62,80.925,80.886,0.53906012]
[1770821217784,19.62367447,80.91,80.886,0.53906012]
[1770821218092,43.62,80.925,80.887,12.36292605]
[1770821218299,19.62367447,80.92,80.891,0.53906012]
[1770821218498,19.62367447,80.91,80.878,0.53906012]
[1770821218807,19.62367447,80.95,80.901,0.53906012]
[1770821218987,19.62367447,80.95,80.911,0.53906012]
[1770821219500,19.62367447,80.95,80.862,302.98533298]
[1770821219501,19.62367447,80.92,80.891,0.53906012]
[1770821219809,19.62367447,80.95,80.911,0.53906012]
[1770821220027,290.1270386,80.999,80.921,0.53906012]
[1770821220028,5.36086188,80.998,80.921,0.53906012]
[1770821220308,49.37268424,81.017,80.901,41.74]
[1770821220309,19.62367447,80.98,80.94,20.16273459]
[1770821220508,19.62367447,80.95,80.927,0.53906012]
[1770821220683,19.62367447,80.96,80.922,12.89663902]
[1770821220882,19.62367447,80.97,80.931,0.53906012]
[1770821221098,19.62367447,80.98,80.923,0.53906012]
[1770821221316,19.62367447,80.95,80.923,0.53906012]
[1770821221623,19.62367447,80.96,80.923,0.53906012]
[1770821221927,30.86151051,81.008,80.951,0.53906012]
[1770821222226,19.62367447,80.96,80.937,0.53906012]
[1770821222534,19.62367447,80.95,80.921,0.53906012]
[1770821222719,19.62367447,80.97,80.931,0.53906012]
[1770821222921,19.62367447,80.98,80.95,19.62367447]
[1770821223104,19.62367447,80.98,80.951,0.53906012]
[1770821223302,19.62367447,80.98,80.94,19.62367447]
[1770821223506,43.58,80.981,80.938,0.53906012]
[1770821223507,19.62367447,80.97,80.938,0.53906012]
[1770821223922,19.62367447,80.96,80.938,0.53906012]
[1770821224120,19.62367447,80.95,80.911,0.53906012]
[1770821224426,19.62367447,80.94,80.913,0.53906012]
[1770821224605,19.62367447,80.95,80.913,0.53906012]
[1770821224801,19.62367447,80.98,80.941,0.53906012]
[1770821225044,19.62367447,80.97,80.941,0.53906012]
[1770821225417,19.62367447,80.95,80.926,0.53906012]
[1770821225616,19.62367447,80.96,80.931,0.53906012]
[1770821226023,19.62367447,80.95,80.913,0.53906012]
[1770821226326,19.62367447,80.94,80.914,12.3588007]
[1770821226506,19.62367447,80.94,80.913,0.53906012]
[1770821226712,19.62367447,80.93,80.901,12.36078664]
[1770821227212,12.35498338,80.939,80.898,0.53906012]
[1770821227414,63.18367447,80.94,80.901,0.53906012]
[1770821227717,19.62367447,80.93,80.901,0.53906012]
[1770821227917,19.62367447,80.92,80.888,12.36277321]
[1770821228107,19.62367447,80.91,80.887,0.53906012]
[1770821228309,19.62367447,80.93,80.891,0.53906012]
[1770821228527,5.36086188,80.971,80.888,12.36277321]
[1770821228528,19.62367447,80.94,80.901,0.53906012]
[1770821228825,19.62367447,80.93,80.911,0.53906012]
[1770821229033,19.62367447,80.93,80.888,43.26970625]
[1770821229034,19.62367447,80.95,80.92,19.62367447]
[1770821229232,12.35069541,80.968,80.931,0.53906012]
[1770821229433,19.62367447,80.95,80.931,0.53906012]
[1770821229724,19.62367447,80.95,80.888,253.43685091]
[1770821229725,19.62367447,80.98,80.941,0.53906012]
[1770821230032,19.62367447,80.99,80.951,0.53906012]
[1770821230224,19.62367447,80.96,80.923,0.53906012]
[1770821230405,19.62367447,80.95,80.924,12.35727349]
[1770821230606,19.62367447,80.95,80.923,0.53906012]
[1770821230806,19.62367447,80.94,80.906,0.53906012]
[1770821231006,43.56,80.949,80.911,0.53906012]
[1770821231213,19.62367447,80.94,80.911,0.53906012]
[1770821231426,19.62367447,80.95,80.921,0.53906012]
[1770821231627,49.37398422,81.015,80.931,0.53906012]
[1770821231628,43.56,80.964,80.931,0.53906012]
[1770821231824,43.56,80.964,80.941,0.53906012]
[1770821232329,19.62367447,80.98,80.952,12.3529993]
[1770821232623,19.62367447,80.98,80.953,0.53906012]
[1770821232810,43.56,80.985,80.961,0.53906012]
[1770821233012,19.62367447,80.98,80.948,0.53906012]
[1770821233213,43.56,80.985,80.96,19.62367447]
[1770821233420,43.58,80.995,80.97,19.62367447]
[1770821233727,19.62367447,80.98,80.948,0.53906012]
[1770821234231,19.62367447,80.98,80.95,19.62367447]
[1770821234619,252.99271871,81.03,80.917,41.66]
[1770821234620,43.58,80.988,80.961,0.53906012]
[1770821234822,43.58,80.996,80.961,0.53906012]
[1770821235119,4.61729252,81.025,80.951,43.23603166]
[1770821235120,43.58,81.004,80.981,0.53906012]
[1770821235332,19.62367447,81.01,80.981,0.53906012]
[1770821235721,4.61729252,81.042,80.98,19.62367447]
[1770821235922,19.62367447,81.0,80.967,0.53906012]
[1770821236124,19.62367447,80.99,80.967,0.53906012]
[1770821236331,4.61729252,81.038,80.981,0.53906012]
[1770821236332,19.62367447,81.02,80.981,0.53906012]
[1770821236518,12.34278379,81.019,80.991,0.53906012]
[1770821236920,19.62367447,81.01,80.985,12.34787248]
[1770821237122,19.62367447,81.03,80.991,0.53906012]
[1770821237343,19.62367447,81.03,81.001,0.53906012]
[1770821237636,43.58,81.032,80.986,0.53906012]
[1770821237637,19.62367447,81.01,80.986,0.53906012]
[1770821238026,19.62367447,81.01,80.975,12.8885507]
[1770821238222,19.62367447,80.99,80.97,12.35018396]
[1770821238425,19.62367447,81.0,80.97,19.62367447]
[1770821238634,19.62367447,81.0,80.968,0.53906012]
[1770821238817,43.58,81.003,80.971,0.53906012]
[1770821239018,12.56321457,81.0,80.971,0.53906012]
[1770821239217,4.61729252,81.042,80.99,12.56321457]
[1770821239531,12.56321457,81.01,80.991,0.53906012]
[1770821239728,12.56321457,81.01,80.971,0.53906012]
[1770821240062,56.14321457,81.02,80.981,0.53906012]
[1770821240240,12.56321457,81.0,80.968,0.53906012]
[1770821240738,12.56321457,80.98,80.958,0.53906012]
[1770821241114,43.21574534,80.989,80.946,0.53906012]
[1770821241115,12.56321457,80.97,80.946,0.53906012]
[1770821241317,12.56321457,80.97,80.948,0.53906012]
[1770821241516,12.56321457,80.98,80.948,0.53906012]
[1770821241725,12.56321457,80.97,80.937,12.35528868]
[1770821241938,12.56321457,80.96,80.937,12.35528868]
[1770821242135,43.56,80.985,80.938,0.53906012]
[1770821242319,12.56321457,80.96,80.938,0.53906012]
[1770821242842,12.56321457,80.96,80.938,12.89410811]
[1770821243026,12.56321457,80.97,80.939,0.53906012]
[1770821243427,49.35730097,81.042,80.951,0.53906012]
[1770821243633,49.35202068,81.051,80.938,43.24288806]
[1770821243634,12.56321457,80.97,80.938,12.35504799]
[1770821243818,12.56321457,80.96,80.939,0.53906012]
[1770821244018,12.56321457,80.95,80.932,12.35597743]
[1770821244241,12.56321457,80.96,80.932,12.89503755]
[1770821244421,12.56321457,80.95,80.932,0.53906012]
[1770821244620,43.56,80.956,80.921,0.53906012]
[1770821244821,43.56,80.956,80.931,0.53906012]
[1770821245334,12.56321457,80.96,80.916,43.25473329]
[1770821245335,12.56321457,80.95,80.918,0.53906012]
[1770821245742,12.56321457,80.94,80.918,0.53906012]
[1770821246051,43.56,80.957,80.882,0.53906012]
[1770821246052,12.56321457,80.93,80.882,0.53906012]
[1770821246344,12.56321457,80.92,80.882,0.53906012]
[1770821246721,43.56,80.929,80.891,0.53906012]
[1770821247255,49.40147301,80.97,80.883,43.27238108]
[1770821247256,12.56321457,80.94,80.911,0.53906012]
[1770821247618,43.56,80.964,80.921,0.53906012]
[1770821247825,12.56321457,80.95,80.921,0.53906012]
[1770821248426,12.56321457,80.96,80.921,0.53906012]
[1770821248626,12.56321457,80.95,80.921,0.53906012]
[1770821248834,12.56321457,80.93,80.909,0.53906012]
[1770821249020,12.56321457,80.93,80.91,12.89847181]
[1770821249225,12.56321457,80.93,80.911,0.53906012]
[1770821249538,12.56321457,80.92,80.882,0.53906012]
[1770821249750,43.56,80.919,80.882,0.53906012]
[1770821250051,43.56,80.919,80.881,43.27345111]
[1770821250052,43.56,80.919,80.891,0.53906012]
[1770821250252,12.56321457,80.91,80.891,0.53906012]
[1770821250429,43.56,80.919,80.882,0.53906012]
[1770821250630,43.56,80.919,80.891,0.53906012]
[1770821250934,12.56321457,80.93,80.893,0.53906012]
[1770821251118,12.56321457,80.92,80.893,0.53906012]
[1770821251316,43.56,80.925,80.893,0.53906012]
[1770821251542,43.56,80.925,80.901,0.53906012]
[1770821251848,12.56321457,80.96,80.911,0.53906012]
[1770821252022,49.38031346,81.004,80.892,92.71621419]
[1770821252023,12.56321457,80.98,80.95,12.56321457]
[1770821252435,12.56321457,80.98,80.941,0.53906012]
[1770821252726,12.56321457,80.96,80.928,0.53906012]
[1770821252927,12.56321457,80.97,80.931,0.53906012]
[1770821253128,12.56321457,80.98,80.941,0.53906012]
[1770821253338,12.56321457,80.97,80.941,0.53906012]
[1770821253542,43.54,80.976,80.941,0.53906012]
[1770821253746,12.56321457,80.99,80.961,0.53906012]
[1770821254040,43.54,80.989,80.961,0.53906012]
[1770821254346,43.54,81.002,80.971,0.53906012]
[1770821254521,12.56321457,81.01,80.971,0.53906012]
[1770821254721,43.18695013,81.043,80.971,0.53906012]
[1770821254722,12.56321457,81.0,80.971,0.53906012]
[1770821254943,12.56321457,81.0,80.96,12.56321457]
[1770821254944,12.56321457,81.0,80.973,0.53906012]
[1770821255241,43.54,81.013,80.962,0.53906012]
[1770821255453,12.56321457,81.0,80.971,0.53906012]
[1770821255628,12.56321457,81.01,80.98,0.53906012]
[1770821255839,12.56321457,81.0,80.967,0.53906012]
[1770821256047,12.56321457,81.01,80.971,0.53906012]
[1770821256251,12.56321457,81.0,80.971,0.53906012]
[1770821256752,55.88374817,81.013,80.971,0.53906012]
[1770821256936,12.56321457,81.01,80.973,0.53906012]
[1770821257459,55.88374817,81.013,80.973,0.53906012]
[1770821257460,12.56321457,81.0,80.973,0.53906012]
[1770821257627,12.56321457,81.01,80.973,0.53906012]
[1770821258226,12.56321457,81.0,80.973,0.53906012]
[1770821258431,55.66,81.044,80.99,12.56321457]
[1770821258630,12.56321457,81.01,80.973,0.53906012]
[1770821258839,43.56,81.017,80.98,12.56321457]
[1770821259043,43.56,81.017,80.99,12.56321457]
[1770821259246,12.56321457,81.03,80.99,12.56321457]
[1770821259430,12.56321457,81.02,80.98,12.56321457]
[1770821259635,12.56321457,81.01,80.981,0.53906012]
[1770821259837,12.56321457,80.99,80.967,0.53906012]
[1770821260039,12.56321457,80.99,80.896,49.44601725]
[1770821260040,43.54,81.001,80.97,12.56321457]
[1770821260345,12.56321457,81.01,80.97,12.56321457]
[1770821260346,12.56321457,81.01,80.981,0.53906012]
[1770821260545,12.56321457,81.0,80.968,0.53906012]
[1770821260764,12.56321457,81.01,80.98,12.56321457]
[1770821260932,12.56321457,81.01,80.982,12.3484231]
[1770821261133,43.54,81.013,80.983,0.53906012]
[1770821261331,43.54,81.013,80.991,0.53906012]
[1770821261746,12.56321457,81.01,80.978,0.53906012]
[1770821261949,12.56321457,81.0,80.978,0.53906012]
[1770821262135,12.56321457,80.99,80.953,0.53906012]
[1770821262329,12.56321457,80.97,80.946,0.53906012]
[1770821262535,12.56321457,80.98,80.946,0.53906012]
[1770821262937,12.56321457,80.96,80.934,0.53906012]
[1770821263268,4.61729252,81.011,80.941,0.53906012]
[1770821263447,12.56321457,80.98,80.941,0.53906012]
[1770821264056,12.56321457,80.96,80.929,0.53906012]
[1770821264269,12.56321457,80.97,80.941,0.53906012]
[1770821264635,12.56321457,80.96,80.92,12.56321457]
[1770821264831,12.56321457,80.94,80.917,0.53906012]
[1770821265137,12.56321457,81.0,80.905,0.53906012]
[1770821265138,12.56321457,80.93,80.905,0.53906012]
[1770821265352,24.32,80.936,80.911,0.53906012]
[1770821265562,12.56321457,80.96,80.921,0.53906012]
[1770821265859,12.56321457,80.97,80.931,0.53906012]
[1770821266058,43.5,80.976,80.921,0.53906012]
[1770821266059,12.56321457,80.96,80.921,0.53906012]
[1770821266275,12.56321457,80.96,80.907,41.46]
[1770821266276,12.56321457,80.97,80.931,0.53906012]
[1770821266464,12.56321457,80.96,80.931,0.53906012]
[1770821266968,12.56321457,80.96,80.901,43.26275324]
[1770821266969,12.56321457,80.94,80.921,0.53906012]
[1770821267168,43.221082,80.979,80.906,0.53906012]
[1770821267169,12.56321457,80.93,80.906,0.53906012]
[1770821267348,12.56321457,80.93,80.9,12.56321457]
[1770821267548,12.56321457,80.93,80.901,0.53906012]
[1770821267749,12.56321457,80.92,80.901,0.53906012]
[1770821268166,12.56321457,80.92,80.893,12.36200907]
[1770821268561,12.56321457,80.93,80.9,13.10227469]
[1770821268761,12.56321457,80.93,80.893,12.36200907]
[1770821268762,12.56321457,80.94,80.901,0.53906012]
[1770821268970,12.5774817,80.96,80.931,0.53906012]
[1770821269150,12.5774817,80.96,80.932,12.35605199]
[1770821269350,12.5774817,80.96,80.933,0.53906012]
[1770821269548,12.5774817,80.97,80.933,0.53906012]
[1770821269978,12.5774817,80.97,80.902,0.53906012]
[1770821270166,4.61729252,80.976,80.891,0.53906012]
[1770821270354,12.5774817,80.94,80.901,0.53906012]
[1770821270550,43.5,80.948,80.911,0.53906012]
[1770821270763,43.5,80.954,80.921,0.53906012]
[1770821271255,43.5,80.954,80.892,41.42]
[1770821271256,12.34903307,80.978,80.94,12.5774817]
[1770821271459,49.3664557,81.027,80.951,0.53906012]
[1770821271460,12.5774817,80.98,80.951,0.53906012]
[1770821271774,12.34888057,80.979,80.951,0.53906012]
[1770821272074,12.5774817,80.98,80.941,0.53906012]
[1770821272373,12.5774817,80.95,80.9,0.53906012]
[1770821272577,12.5774817,80.94,80.911,0.53906012]
[1770821272966,12.5774817,80.96,80.921,0.53906012]
[1770821273376,12.5774817,80.96,80.923,0.53906012]
[1770821273760,12.5774817,80.94,80.9,12.5774817]
[1770821274271,12.5774817,80.93,80.896,12.90061075]
[1770821274470,12.5774817,80.92,80.896,12.90061075]
[1770821274672,12.5774817,80.93,80.896,12.90061075]
[1770821274861,12.5774817,80.92,80.896,0.53906012]
[1770821275269,12.5774817,80.91,80.896,0.53906012]
[1770821275471,12.35956444,80.909,80.86,12.5774817]
[1770821275679,12.5774817,80.9,80.87,12.5774817]
[1770821275865,12.5774817,80.91,80.87,12.5774817]
[1770821276077,30.88725457,80.94,80.89,12.5774817]
[1770821276269,12.5774817,80.92,80.88,12.5774817]
[1770821276990,12.5774817,80.92,80.869,41.36]
[1770821276991,12.5774817,80.93,80.9,12.5774817]
[1770821277181,12.5774817,80.94,80.9,12.5774817]
[1770821277365,12.5774817,80.93,80.902,0.48694433]
[1770821277597,12.5774817,80.94,80.902,0.48694433]
[1770821277779,12.5774817,80.92,80.889,0.48694433]
[1770821278286,12.5774817,80.92,80.89,12.36246754]
[1770821278485,12.5774817,80.92,80.891,0.48694433]
[1770821279666,12.5774817,80.93,80.893,0.48694433]
[1770821279867,12.5774817,80.92,80.893,0.48694433]
[1770821280374,43.23763403,80.948,80.878,0.48694433]
[1770821280375,12.5774817,80.9,80.878,0.48694433]
[1770821280576,12.5774817,80.92,80.881,0.48694433]
[1770821280787,12.5774817,80.91,80.881,0.48694433]
[1770821280988,12.5774817,80.9,80.872,12.36521911]
[1770821281284,12.5774817,80.9,80.868,12.36580036]
[1770821281594,0.49264538,80.907,80.868,12.36580036]
[1770821281595,12.5774817,80.89,80.868,12.36580036]
[1770821281797,12.5774817,80.88,80.841,0.48694433]
[1770821281974,12.5774817,80.9,80.861,0.48694433]
[1770821282174,12.5774817,80.9,80.871,0.48694433]
[1770821282472,12.5774817,80.9,80.831,30.92866332]
[1770821282473,12.5774817,80.92,80.881,0.48694433]
[1770821282678,12.5774817,80.96,80.911,0.48694433]
[1770821282871,12.5774817,80.96,80.921,0.48694433]
[1770821283072,12.35028242,80.97,80.931,0.48694433]
[1770821283373,12.5774817,80.96,80.92,12.5774817]
[1770821283575,12.5774817,80.96,80.915,0.48694433]
[1770821283576,12.5774817,80.94,80.915,0.48694433]
[1770821283777,12.5774817,80.93,80.892,0.48694433]
[1770821283991,12.5774817,80.92,80.892,0.48694433]
[1770821284369,12.5774817,80.91,80.88,12.5774817]
[1770821284567,12.5774817,80.91,80.878,0.48694433]
[1770821284792,12.5774817,80.91,80.881,12.36384317]
[1770821285118,12.5774817,80.91,80.878,0.48694433]
[1770821285392,12.5774817,80.92,80.881,0.48694433]
[1770821285607,12.5774817,80.92,80.84,4.61729252]
[1770821285608,12.5774817,80.9,80.863,0.48694433]
[1770821285798,12.5774817,80.9,80.865,0.48694433]
[1770821286170,12.35739685,80.924,80.881,0.48694433]
[1770821286374,12.5774817,80.92,80.881,0.48694433]
[1770821287087,12.35208379,80.958,80.91,12.5774817]
[1770821287297,12.5774817,80.96,80.921,0.48694433]
[1770821287495,12.5774817,80.97,80.931,0.48694433]
[1770821287793,12.5774817,80.97,80.931,12.35620466]
[1770821287997,12.5774817,80.97,80.932,0.48694433]
[1770821288293,12.5774817,80.97,80.941,0.48694433]
[1770821288588,12.5774817,80.95,80.921,12.35773161]
[1770821288792,12.5774817,80.94,80.91,12.5774817]
[1770821289297,12.5774817,80.93,80.909,0.48694433]
[1770821289498,12.5774817,80.92,80.909,0.48694433]
[1770821289873,0.48951448,80.929,80.909,0.48694433]
[1770821290193,12.5774817,80.93,80.909,0.48694433]
[1770821290492,12.5774817,80.93,80.91,12.35941169]
[1770821290692,12.5774817,80.95,80.91,55.83542262]
[1770821291079,12.5774817,80.94,80.908,0.48694433]
[1770821291282,12.35345711,80.949,80.911,0.48694433]
[1770821291584,12.5774817,80.93,80.897,0.48694433]
[1770821291804,12.5774817,80.93,80.898,12.36124502]
[1770821292277,12.5774817,80.95,80.911,0.48694433]
[1770821292473,12.5774817,80.92,80.871,0.48694433]
[1770821292795,12.5774817,80.94,80.871,0.48694433]
[1770821292796,12.5774817,80.9,80.871,0.48694433]
[1770821293296,12.5774817,80.92,80.881,0.48694433]
[1770821293475,12.5774817,80.9,80.873,41.3]
[1770821293676,12.5774817,80.91,80.874,0.48694433]
[1770821293899,12.5774817,80.91,80.876,0.48694433]
[1770821294393,12.5774817,80.94,80.822,0.48694433]
[1770821294394,0.4882241,80.889,80.822,0.48694433]
[1770821294694,0.48791071,80.887,80.822,0.48694433]
[1770821294900,12.5774817,80.85,80.822,0.48694433]
[1770821295778,12.5774817,80.86,80.822,0.48694433]
[1770821295998,12.5774817,80.85,80.824,0.48694433]
[1770821296287,12.5774817,80.87,80.831,0.48694433]
[1770821296489,24.94311221,80.87,80.831,0.48694433]
[1770821296697,12.5774817,80.85,80.823,12.37271568]
[1770821296994,12.5774817,80.84,80.82,0.1]
[1770821297198,4.61729252,80.897,80.821,0.48694433]
[1770821297388,12.5774817,80.89,80.851,0.48694433]
[1770821297588,12.5774817,80.91,80.871,0.48694433]
[1770821297786,12.5774817,80.89,80.855,0.48694433]
[1770821297985,12.5774817,80.88,80.855,0.48694433]
[1770821298189,12.5774817,80.88,80.856,12.36766597]
[1770821298377,12.5774817,80.88,80.843,30.9240317]
[1770821298378,12.5774817,80.87,80.843,0.48694433]
[1770821298583,12.5774817,80.88,80.843,0.48694433]
[1770821298784,12.5774817,80.87,80.843,0.48694433]
[1770821298988,12.5774817,80.88,80.843,0.48694433]
[1770821299790,12.5774817,80.89,80.85,12.5774817]
[1770821299983,12.5774817,80.88,80.852,12.85522217]
[1770821300291,12.5774817,80.86,80.832,12.37133808]
[1770821300693,12.5774817,80.85,80.82,0.1]
[1770821300897,12.5774817,80.85,80.822,0.48741536]
[1770821301780,12.5774817,80.86,80.822,0.48741536]
[1770821301977,12.5774817,80.86,80.824,0.48741536]
[1770821302396,30.90972042,80.881,80.823,43.30450489]
[1770821302397,12.5774817,80.88,80.841,0.48741536]
[1770821303178,12.5774817,80.89,80.85,12.5774817]
[1770821303386,12.5774817,80.91,80.871,0.48741536]
[1770821303695,43.16,80.924,80.88,12.5774817]
[1770821303895,12.5774817,80.93,80.893,0.48741536]
[1770821304092,12.5774817,80.92,80.893,0.48741536]
[1770821304286,12.5774817,80.93,80.893,0.48741536]
[1770821304489,12.5774817,80.9,80.87,0.48741536]
[1770821304690,12.5774817,80.9,80.871,12.36537201]
[1770821304894,12.5774817,80.9,80.87,0.48741536]
[1770821305198,43.16,80.925,80.87,0.48741536]
[1770821305199,12.5774817,80.91,80.871,0.48741536]
[1770821305404,12.5774817,80.89,80.858,0.48741536]
[1770821305592,12.5774817,80.88,80.858,0.48741536]
[1770821306302,12.36414891,80.879,80.858,0.48741536]
[1770821306509,12.36109222,80.899,80.861,0.48995849]
[1770821306804,12.5774817,80.88,80.853,53.68811342]
[1770821306985,12.5774817,80.88,80.853,41.32]
[1770821307387,12.5774817,80.87,80.827,0.48995849]
[1770821307586,92.70819168,80.899,80.827,0.48995849]
[1770821307587,12.5774817,80.85,80.827,0.48995849]
[1770821307791,12.5774817,80.85,80.82,0.58995849]
[1770821308193,12.5774817,80.86,80.821,0.48995849]
[1770821308396,12.5774817,80.86,80.822,0.48995849]
[1770821308597,24.94466803,80.86,80.824,0.48995849]
[1770821309005,12.5774817,80.87,80.83,12.5774817]
[1770821309206,12.5774817,80.87,80.831,0.48995849]
[1770821309382,12.5774817,80.86,80.831,0.48995849]
[1770821309585,12.5774817,80.85,80.824,0.48995849]
[1770821310006,12.5774817,80.86,80.824,0.48995849]
[1770821310203,12.5774817,80.85,80.824,0.48995849]
[1770821310590,12.5774817,80.86,80.824,0.48995849]
[1770821310791,12.36720711,80.859,80.826,0.48995849]
[1770821310992,12.5774817,80.87,80.831,0.48995849]
[1770821311685,0.48259538,80.879,80.831,0.48995849]
[1770821311889,12.5774817,80.86,80.831,0.48995849]
[1770821312089,12.5774817,80.85,80.823,12.86258866]
[1770821312312,12.5774817,80.86,80.824,0.48995849]
[1770821312499,24.94147774,80.88,80.841,0.48995849]
[1770821312910,12.5774817,80.87,80.843,0.48995849]
[1770821313208,12.5774817,80.87,80.842,12.36980777]
[1770821313393,12.5774817,80.86,80.828,12.37181213]
[1770821313601,12.5774817,80.86,80.829,0.48995849]
[1770821314215,12.5774817,80.87,80.831,0.48995849]
[1770821314411,12.5774817,80.88,80.841,0.48995849]
[1770821314808,12.5774817,80.86,80.83,0.48995849]
[1770821315013,12.5774817,80.85,80.829,41.38]
[1770821315200,12.5774817,80.87,80.83,12.5774817]
[1770821315401,12.5774817,80.86,80.83,12.37164419]
[1770821315911,12.5774817,80.86,80.83,43.30075466]
[1770821316121,12.5774817,80.86,80.83,12.37164419]
[1770821316300,12.5774817,80.85,80.829,0.48995849]
[1770821316500,43.27840813,80.872,80.829,0.48995849]
[1770821316501,12.5774817,80.84,80.829,0.48995849]
[1770821317105,12.5774817,80.84,80.82,41.48]
[1770821317310,12.5774817,80.84,80.82,0.1]
[1770821317512,12.36873678,80.849,80.82,0.58995849]
[1770821317825,12.5774817,80.83,80.82,0.1]
[1770821317998,12.5774817,80.83,80.802,0.48995849]
[1770821317999,12.5774817,80.83,80.806,12.37531459]
[1770821318195,12.5774817,80.83,80.802,12.86584113]
[1770821318718,12.5774817,80.82,80.8,0.1]
[1770821319096,0.38091309,80.836,80.8,0.1]
[1770821319097,12.37230359,80.826,80.8,0.1]
[1770821319315,12.5774817,80.82,80.8,0.1]
[1770821319522,12.5774817,80.81,80.8,0.1]
[1770821319814,12.37230359,80.826,80.8,0.1]
[1770821320016,55.5974817,80.84,80.801,0.48995849]
[1770821320518,12.5774817,80.81,80.8,0.1]
[1770821320699,12.5774817,80.82,80.8,0.1]
[1770821321424,12.5774817,80.84,80.801,0.48995849]
[1770821321732,12.5774817,80.84,80.8,55.99431337]
[1770821321733,0.38023273,80.887,80.831,0.48995849]
[1770821321914,12.5774817,80.88,80.841,0.48995849]
[1770821322522,12.5774817,80.89,80.851,0.48995849]
[1770821322822,12.5774817,80.88,80.837,0.48995849]
[1770821323004,12.5774817,80.88,80.841,0.48995849]
[1770821323204,12.36414891,80.879,80.842,12.36980777]
[1770821323411,12.36414891,80.879,80.843,0.48995849]
[1770821324018,12.36414891,80.879,80.831,30.92859734]
[1770821324019,12.5774817,80.87,80.832,0.48995849]
[1770821324602,12.5774817,80.86,80.832,0.48995849]
[1770821324812,0.37957555,80.928,80.851,0.48995849]
[1770821325030,0.37957555,80.928,80.831,123.71490076]
[1770821325031,12.5774817,80.9,80.861,0.48995849]
[1770821325207,12.5774817,80.91,80.872,0.48995849]
[1770821325402,12.5774817,80.89,80.861,0.48995849]
[1770821325608,43.25847556,80.909,80.85,0.48995849]
[1770821325609,12.5774817,80.88,80.85,0.48995849]
[1770821325831,0.3793615,80.887,80.841,0.48995849]
[1770821326030,12.5774817,80.87,80.841,0.48995849]
[1770821326505,43.02,80.885,80.841,0.48995849]
[1770821326706,12.5774817,80.89,80.851,0.48995849]
[1770821327104,12.5774817,80.88,80.841,0.48995849]
[1770821327304,12.5774817,80.89,80.851,0.48995849]
[1770821327522,12.5774817,80.9,80.851,0.48995849]
[1770821327705,12.35988375,80.907,80.86,12.5774817]
[1770821327907,12.5774817,80.93,80.891,0.48995849]
[1770821328103,12.35498338,80.939,80.901,0.48995849]
[1770821328307,12.5774817,80.93,80.901,0.48995849]
[1770821328613,12.5774817,80.93,80.891,0.48995849]
[1770821328929,24.93241242,80.94,80.901,0.48995849]
[1770821329124,12.5774817,80.93,80.901,0.48995849]
[1770821329325,12.5774817,80.92,80.884,0.48995849]
[1770821329507,43.62631469,80.929,80.884,0.48995849]
[1770821329713,12.5774817,80.92,80.891,0.48995849]
[1770821330104,12.5774817,80.93,80.891,0.48995849]
[1770821330325,12.5774817,80.93,80.901,0.48995849]
[1770821330930,12.5774817,80.93,80.883,43.27238108]
[1770821330931,12.58839916,80.92,80.884,0.47084689]
[1770821331429,12.58839916,80.92,80.886,0.47084689]
[1770821331617,24.94628954,80.92,80.882,17.3]
[1770821331818,12.58839916,80.9,80.861,0.47084689]
[1770821332211,12.58839916,80.91,80.871,0.47084689]
[1770821332409,42.96,80.919,80.881,0.47084689]
[1770821332606,12.58839916,80.93,80.891,0.47084689]
[1770821332810,12.58839916,80.95,80.911,0.47084689]
[1770821333009,12.58839916,80.95,80.88,12.58839916]
[1770821333010,12.58839916,80.97,80.931,0.47084689]
[1770821333214,12.58839916,80.95,80.931,0.47084689]
[1770821333516,12.58839916,80.96,80.932,12.35605199]
[1770821333709,24.93865234,80.97,80.933,0.47084689]
[1770821334116,0.37754237,80.981,80.933,0.47084689]
[1770821334428,12.58839916,80.99,80.941,0.47084689]
[1770821334927,43.58261834,81.009,80.981,0.47084689]
[1770821334928,0.37754237,81.009,80.981,0.47084689]